fUST/lending_fUST_20250430
["ID","MTS","AMOUNT","RATE_DAILY","PERIOD"]
[359431543,1746009045735,-400.0,0.00027397,2]
[359431544,1746009045745,-2452.89,0.00027397,2]
[359431545,1746009045754,-500.0,0.00027397,2]
[359431546,1746009045764,-2452.89,0.00027397,2]
[359431547,1746009045774,-521.4844628,0.00027397,2]
[359431548,1746009045784,-2452.89,0.00027397,2]
[359431549,1746009045794,-2452.89,0.00027397,2]
[359431550,1746009045804,-2452.89,0.00027397,2]
[359431551,1746009045813,-2452.89,0.00027397,2]
[359431552,1746009045823,-1923.91575923,0.00027397,2]
[359431557,1746009046280,-528.97424077,0.00027397,2]
[359431558,1746009046290,-374.00242191,0.00027397,2]
[359431559,1746009046387,-128.39254733,0.00027397,2]
[359431560,1746009046397,-770.01274143,0.00027397,2]
[359431561,1746009046442,-879.999999,0.00027397,2]
[359431570,1746009775085,194.0,0.00025,90]
[359431576,1746010014107,-160.0,0.00020602,2]
[359431577,1746010014136,-12.23438968,0.00020609,2]
[359431599,1746010232443,-292.0,0.00020609,2]
[359431600,1746010232454,-300.0,0.00020609,2]
[359431601,1746010232463,-300.0,0.00020609,2]
[359431602,1746010232471,-1200.0,0.00020609,2]
[359431603,1746010232480,-8563.34415295,0.0002061,2]
[359431604,1746010232489,-400.0,0.00022427,2]
[359431605,1746010232497,-420.0,0.00022427,2]
[359431606,1746010232506,-1680.0,0.00022534,2]
[359431607,1746010232515,-708.9279623,0.0002256,2]
[359431608,1746010232524,-587.0,0.00024405,2]
[359431609,1746010232535,-500.0,0.000245,2]
[359431610,1746010232545,-500.0,0.000245,2]
[359431612,1746010232555,-300.0,0.000245,2]
[359431614,1746010232564,-500.0,0.000245,2]
[359431616,1746010232574,-500.0,0.000245,2]
[359431617,1746010232583,-500.0,0.000245,2]
[359431618,1746010232593,-34354.88738337,0.000245,2]
[359431619,1746010232603,-2351.0,0.00024639,2]
[359431621,1746010232613,-506.83047674,0.000247,2]
[359431623,1746010232623,-259.737905,0.00025322,2]
[359431625,1746010232632,-1000.0,0.00025625,2]
[359431627,1746010232643,-333.038586,0.00025754,2]
[359431629,1746010232654,-218.36637992,0.000258,2]
[359431631,1746010232665,-560.8303941,0.00025824,2]
[359431633,1746010232675,-600.0,0.00026144,2]
[359431635,1746010232684,-823.0,0.00026558,2]
[359431637,1746010232694,-151.0,0.00026609,2]
[359431639,1746010232703,-207.4,0.00026609,2]
[359431641,1746010232714,-3693.44,0.000268,2]
[359431644,1746010232724,-500.0,0.00026859,2]
[359431646,1746010232734,-337.99837968,0.00026859,2]
[359431648,1746010232743,-500.0,0.00026859,2]
[359431650,1746010232753,-334.14042293,0.00026859,2]
[359431651,1746010232763,-544.0577353,0.00026859,2]
[359431652,1746010232772,-500.0,0.00026859,2]
[359431653,1746010232783,-500.0,0.00026859,2]
[359431654,1746010232938,-588.86,0.0002686,3]
[359431655,1746010232949,-59098.55538,0.0002686,2]
[359431656,1746010232958,-45078.67235683,0.0002687,2]
[359431657,1746010232969,-2939.0,0.0002694,2]
[359431658,1746010232978,-1575.0,0.00027,2]
[359431659,1746010232988,-3660.7892605,0.00027,2]
[359431660,1746010232998,-339.73478382,0.00027,2]
[359431661,1746010233007,-378.47126472,0.00027231,2]
[359431662,1746010233017,-59098.55538,0.00027277,2]
[359431663,1746010233027,-189499.75306376,0.00027287,2]
[359431757,1746010243737,-19.13715441,0.000258,2]
[359431770,1746010476567,-250.0,0.00025105,2]
[359431771,1746010476589,-158.86494167,0.00025105,2]
[359431773,1746010478792,-408.86494167,0.00025105,2]
[359431774,1746010485285,-300.0,0.00025105,2]
[359431775,1746010525547,-151.0,0.00018585,2]
[359431776,1746010525570,-59.92820272,0.00025105,2]
[359431777,1746010533061,-151.85351566,0.00019954,2]
[359431778,1746010533086,-72.34191394,0.00025105,2]
[359431779,1746010533108,-34.08257894,0.00025105,2]
[359431780,1746010539978,-175.16702011,0.00025105,2]
[359431781,1746010542941,-40.75040095,0.00025105,2]
[359431782,1746010542963,-127.48045995,0.00025205,2]
[359431783,1746010548279,-152.65993266,0.00025205,2]
[359431784,1746010548302,-121.91032467,0.00025707,2]
[359431785,1746010553279,-400.50921726,0.00025707,2]
[359431786,1746010558566,-263.42974267,0.00025707,2]
[359431787,1746010562945,-236.57025733,0.00025706,2]
[359431788,1746010566682,-63.42974267,0.00025706,2]
[359431789,1746010566708,-236.57025733,0.00025707,2]
[359431790,1746010571200,-436.57025733,0.00025707,2]
[359431791,1746010574902,-341.51533644,0.00025707,2]
[359431792,1746010579559,-153.28026028,0.00025707,2]
[359431793,1746010582959,-168.31226255,0.00025707,2]
[359431794,1746010586712,-244.09880099,0.00025707,2]
[359431795,1746010589990,-243.58451732,0.00025707,2]
[359431796,1746010594429,-175.1107754,0.00025707,2]
[359431797,1746010598642,-379.92621908,0.00025707,2]
[359431798,1746010606554,-238.28839356,0.00025707,2]
[359431799,1746010609786,-236.64766515,0.00025707,2]
[359431800,1746010613003,-165.84812085,0.00025707,2]
[359431801,1746010616526,-300.0,0.00025707,2]
[359431802,1746010621041,-300.0,0.00025707,2]
[359431803,1746010628951,-300.0,0.00025706,2]
[359431804,1746010628974,-700.0,0.00025707,2]
[359431809,1746010809951,-303.17430411,0.00021852,2]
[359431810,1746010815360,-165.08941128,0.00021852,2]
[359431811,1746010815383,-154.91058872,0.00022944,2]
[359431812,1746010822326,-157.22873197,0.00022944,2]
[359431813,1746010826605,-153.02386508,0.00022944,2]
[359431814,1746010826628,-346.97613492,0.00024092,2]
[359431815,1746010832841,-118.03202437,0.00024092,2]
[359431816,1746010832865,-288.24465205,0.00025296,2]
[359431817,1746010838543,-176.75575591,0.00025296,2]
[359431818,1746010838570,-42.91906647,0.00025422,2]
[359431819,1746010842972,-207.08093353,0.00025422,2]
[359431820,1746010868301,-232.50997298,0.00025422,2]
[359431821,1746010872692,-276.14444478,0.00025422,2]
[359431822,1746010875989,-158.00743437,0.00025422,2]
[359431823,1746010881382,-333.33814787,0.00025422,2]
[359431829,1746010951781,-170.55591138,0.00025422,2]
[359431830,1746010955723,-79.44408862,0.00025422,2]
[359431831,1746010999885,-220.55591138,0.00025422,2]
[359431834,1746011003711,-250.0,0.00025422,2]
[359431835,1746011006814,-529.44408862,0.00025422,2]
[359431837,1746011047214,-166.1018682,0.00025422,2]
[359431838,1746011116044,-83.8981318,0.00025422,2]
[359431839,1746011116068,-68.1018682,0.00025422,2]
[359431840,1746011120331,-369.84328708,0.00025422,2]
[359431841,1746011124706,-187.23134576,0.00025422,2]
[359431842,1746011128024,-374.82349896,0.00025422,2]
[359431847,1746011255299,-163.04468616,0.00025322,2]
[359431848,1746011260741,-180.33606607,0.00025322,2]
[359431849,1746011268713,-233.51131837,0.00025322,2]
[359431850,1746011274241,-150.51153262,0.00025322,2]
[359431851,1746011280120,-235.82040687,0.00025322,2]
[359431852,1746011285147,-36.77598991,0.00025322,2]
[359431853,1746011285171,-157.02175172,0.00025422,2]
[359431859,1746011379419,-250.0,0.00024846,2]
[359431860,1746011385362,-151.856853,0.00024846,2]
[359431876,1746011432658,-285.15755883,0.00025205,2]
[359431877,1746011432668,-1000.0,0.00025322,2]
[359431878,1746011432677,-159.13584982,0.00025507,2]
[359431879,1746011432687,-244.863091,0.00025522,2]
[359431880,1746011432698,-1215.25215033,0.00025607,2]
[359431881,1746011432708,-300.0,0.00025705,2]
[359431882,1746011432718,-300.0,0.00025706,2]
[359431883,1746011432728,-300.0,0.00025706,2]
[359431884,1746011432738,-1200.0,0.00025706,2]
[359431885,1746011432748,-19794.39784912,0.00025707,2]
[359431886,1746011432757,-397.764263,0.00025889,2]
[359431887,1746011432768,-500.0,0.000259,2]
[359431888,1746011432777,-500.0,0.000259,2]
[359431889,1746011432787,-500.0,0.000259,2]
[359431890,1746011432796,-500.0,0.000259,2]
[359431891,1746011432806,-500.0,0.000259,2]
[359431892,1746011432815,-300.0,0.000259,2]
[359431893,1746011432825,-500.0,0.000259,2]
[359431894,1746011432835,-500.0,0.000259,2]
[359431895,1746011432844,-37444.4904512,0.000259,2]
[359431896,1746011432854,-503.35188038,0.000259,2]
[359431897,1746011432864,-151.0,0.00026026,2]
[359431898,1746011432873,-207.4,0.00026026,2]
[359431899,1746011432883,-507.39909851,0.000261,2]
[359431900,1746011432893,-500.0,0.000261,2]
[359431901,1746011432903,-288.59870689,0.00026178,2]
[359431902,1746011432913,-373.350577,0.00026329,2]
[359431903,1746011432922,-288.59870689,0.00026332,2]
[359431904,1746011432931,-288.59870689,0.00026661,2]
[359431905,1746011432940,-159.13584981,0.00026693,2]
[359431906,1746011432950,-153.8722592,0.00026712,2]
[359431907,1746011432959,-510.4635895,0.00026808,4]
[359431908,1746011432967,-288.59870692,0.00026884,2]
[359431909,1746011432977,-182.04053198,0.00027,3]
[359431910,1746011432987,-1041.74094598,0.00027156,2]
[359431911,1746011432996,-500.0,0.00027173,2]
[359431912,1746011433006,-500.0,0.00027173,2]
[359431913,1746011433015,-501.3195648,0.00027173,2]
[359431914,1746011433025,-500.0,0.00027173,2]
[359431915,1746011433035,-269.14961913,0.00027173,2]
[359431916,1746011433044,-500.0,0.00027173,2]
[359431917,1746011433054,-500.0,0.00027173,2]
[359431918,1746011433063,-500.0,0.00027175,2]
[359431919,1746011433072,-500.0,0.00027175,2]
[359431920,1746011433082,-319.61261729,0.00027175,2]
[359431921,1746011433091,-501.43341575,0.00027175,2]
[359431922,1746011433100,-340.55730231,0.00027175,2]
[359431923,1746011433109,-500.0,0.00027175,2]
[359431924,1746011433118,-500.0,0.00027175,2]
[359431925,1746011433127,-500.0,0.00027175,2]
[359431926,1746011433137,-500.0,0.00027175,2]
[359431927,1746011433146,-500.0,0.00027175,2]
[359431928,1746011433157,-500.0,0.00027175,2]
[359431929,1746011433167,-300.0,0.00027175,2]
[359431930,1746011433177,-500.0,0.00027175,2]
[359431931,1746011433187,-500.0,0.00027175,2]
[359431932,1746011433196,-500.0,0.00027175,2]
[359431933,1746011433205,-463.8827693,0.00027175,2]
[359431934,1746011433214,-500.0,0.00027175,2]
[359431935,1746011433223,-500.0,0.00027175,2]
[359431936,1746011433233,-500.0,0.00027175,2]
[359431937,1746011433245,-500.0,0.00027175,2]
[359431938,1746011433254,-62758.5372332,0.00027177,2]
[359431939,1746011433264,-500.0,0.00027186,2]
[359431940,1746011433273,-500.0,0.00027186,2]
[359431941,1746011433283,-245.6809883,0.00027186,2]
[359431942,1746011433293,-380.50928417,0.00027186,2]
[359431943,1746011433302,-500.0,0.00027186,2]
[359431944,1746011433311,-625.16893793,0.00027186,2]
[359431945,1746011433322,-78956.75025299,0.00027187,2]
[359431946,1746011433346,-500.0,0.00027175,2]
[359431947,1746011433353,-46560.32421301,0.00027187,2]
[359431948,1746011433362,-92666.4402913,0.00027197,2]
[359431949,1746011433370,-20573.59856548,0.00027256,3]
[359431950,1746011433378,-14328.81409114,0.00027256,2]
[359431951,1746011433388,-61266.14023309,0.00027256,2]
[359431952,1746011433397,-160.0,0.00027256,3]
[359431953,1746011433405,-288.5247,0.00027256,7]
[359431954,1746011433414,-125517.074466,0.00027256,2]
[359431955,1746011433423,-153.15319,0.00027266,7]
[359431956,1746011433431,-151.0,0.00027266,7]
[359431957,1746011433440,-151.0,0.00027266,7]
[359431958,1746011433450,-151.0,0.00027266,2]
[359431959,1746011433460,-151.0,0.00027266,2]
[359431960,1746011433469,-160.0,0.00027266,3]
[359431961,1746011433479,-840.90604152,0.00027266,3]
[359431962,1746011433489,-182.04053198,0.00027266,3]
[359431963,1746011433498,-151.0,0.00027276,2]
[359431964,1746011433508,-151.0,0.00027276,7]
[359431965,1746011433518,-151.0,0.00027276,7]
[359431966,1746011433528,-151.0,0.00027276,7]
[359431967,1746011433538,-299.096262,0.00027276,7]
[359431968,1746011433548,-151.0,0.00027276,7]
[359431969,1746011433559,-151.0,0.00027276,7]
[359431970,1746011433569,-151.0,0.00027276,7]
[359431971,1746011433578,-166.0,0.00027287,3]
[359431972,1746011433589,-166.0,0.00027287,3]
[359431973,1746011433599,-166.0,0.00027287,3]
[359431974,1746011433608,-166.0,0.00027287,3]
[359431975,1746011433618,-315.27300255,0.00027287,3]
[359431976,1746011433627,-320.0,0.00027287,3]
[359431977,1746011433637,-320.0,0.00027287,3]
[359431978,1746011433647,-320.0,0.00027287,3]
[359431979,1746011433656,-320.0,0.00027287,3]
[359431980,1746011433666,-161.223709,0.00027297,7]
[359431981,1746011433675,-151.0,0.00027297,7]
[359431982,1746011433685,-151.0,0.000273,14]
[359431983,1746011433694,-1201.61313279,0.000273,3]
[359431984,1746011433703,-151.0,0.00027362,2]
[359431985,1746011433713,-151.0,0.00027362,7]
[359431986,1746011433723,-151.0,0.00027362,7]
[359431987,1746011433732,-151.0,0.00027362,7]
[359431988,1746011433742,-151.0,0.00027362,7]
[359431989,1746011433751,-60896.38002207,0.00027363,2]
[359432064,1746011441637,-110.55746402,0.00027175,2]
[359432100,1746011446749,-389.44253598,0.00027175,2]
[359432101,1746011446762,-500.0,0.00027175,2]
[359432102,1746011446774,-500.0,0.00027175,2]
[359432103,1746011446786,-359.01847845,0.00027175,2]
[359432104,1746011446797,-500.0,0.00027175,2]
[359432105,1746011446809,-500.0,0.00027175,2]
[359432106,1746011446821,-500.0,0.00027175,2]
[359432107,1746011446833,-500.0,0.00027175,2]
[359432108,1746011446844,-500.0,0.00027175,2]
[359432109,1746011446856,-500.0,0.00027175,2]
[359432110,1746011446868,-500.0,0.00027175,2]
[359432111,1746011446880,-454.42507517,0.00027175,2]
[359432112,1746011446927,-45.57492483,0.00027175,2]
[359432113,1746011446939,-500.0,0.00027175,2]
[359432114,1746011446950,-500.0,0.00027175,2]
[359432115,1746011446961,-69.92503016,0.00027175,2]
[359432116,1746011446975,-430.07496984,0.00027175,2]
[359432117,1746011446987,-500.0,0.00027175,2]
[359432118,1746011446998,-500.0,0.00027175,2]
[359432119,1746011447009,-390.82503015,0.00027175,2]
[359432121,1746011706000,-151.0,0.00018585,2]
[359432123,1746012025535,-151.0,0.00018585,2]
[359432124,1746012025563,-6.25543856,0.00019954,2]
[359432125,1746012032901,-144.74456144,0.00019954,2]
[359432126,1746012032924,-151.0,0.00021323,2]
[359432127,1746012032945,-151.0,0.00022692,2]
[359432128,1746012032968,-40.89753136,0.00024061,2]
[359432129,1746012043248,-110.10246864,0.00024061,2]
[359432130,1746012043272,-189.89753136,0.00024996,2]
[359432131,1746012047970,-163.04468616,0.00024996,2]
[359432132,1746012051945,-370.79775501,0.00024996,2]
[359432133,1746012055038,-373.48500577,0.00024996,2]
[359432135,1746012060086,-168.079485,0.00024996,2]
[359432136,1746012064247,-308.9828838,0.00024996,2]
[359432137,1746012072093,-300.0,0.00024996,2]
[359432138,1746012074918,-161.16470176,0.00024996,2]
[359432142,1746012307193,-151.0,0.00018585,2]
[359432143,1746012307215,-0.23239473,0.00019954,2]
[359432144,1746012312223,-150.76760527,0.00019954,2]
[359432145,1746012312246,-34.55248773,0.00021323,2]
[359432146,1746012317860,-188.07468114,0.00021323,2]
[359432147,1746012452382,-708.74795474,0.00024414,2]
[359432148,1746012480981,-295.10153438,0.00024414,2]
[359432149,1746012485615,-288.32423163,0.00024414,2]
[359432150,1746012491939,-211.67576837,0.00024414,2]
[359432151,1746012496365,-152.18079111,0.00024414,2]
[359432152,1746012500452,-154.89792247,0.00024414,2]
[359432159,1746012606929,-481.984951,0.00024151,2]
[359432177,1746012631886,-300.0,0.00024891,2]
[359432178,1746012631896,-274.0,0.00024892,2]
[359432179,1746012631907,-300.0,0.00024892,2]
[359432180,1746012631916,-300.0,0.00024892,2]
[359432181,1746012631926,-300.0,0.00024892,2]
[359432182,1746012631936,-1200.0,0.00024892,2]
[359432183,1746012631946,-20000.62305951,0.00024893,2]
[359432184,1746012631955,-250.0,0.00024894,2]
[359432185,1746012631965,-513.43694049,0.00024896,2]
[359432186,1746012632279,-2541.98204969,0.00024896,2]
[359432187,1746012632288,-1075.45904596,0.00024996,2]
[359432188,1746012632300,-9108.25824026,0.00024996,2]
[359432205,1746012637832,-1956.76497332,0.00024996,2]
[359432206,1746012637842,-1333.84244117,0.00024996,2]
[359432207,1746012637852,-151.23239473,0.00025,2]
[359432208,1746012637862,-7608.28722037,0.00025,2]
[359432209,1746012637872,-152.0,0.00025367,2]
[359432210,1746012637881,-318.90841,0.00025424,2]
[359432211,1746012637891,-24900.0,0.00025444,2]
[359432212,1746012637901,-1000.0,0.000255,2]
[359432213,1746012637911,-250.0,0.00025549,2]
[359432214,1746012637921,-151.0,0.00026026,2]
[359432215,1746012637930,-207.4,0.00026026,2]
[359432216,1746012637940,-408.3708716,0.00026027,4]
[359432217,1746012637949,-160.2907606,0.00026603,2]
[359432218,1746012637958,-1145.1217651,0.00026603,2]
[359432219,1746012637967,-157.3664837,0.00026603,2]
[359432220,1746012637977,-318.0053915,0.00026957,2]
[359432221,1746012637987,-420.0,0.00026969,2]
[359432222,1746012637996,-420.0,0.00026969,2]
[359432223,1746012638006,-308.67118355,0.00027074,2]
[359432224,1746012638015,-3055.41899017,0.00027082,2]
[359432225,1746012638025,-1680.0,0.00027092,2]
[359432226,1746012638036,-247.89875123,0.00027148,2]
[359432227,1746012638050,-503.18702696,0.0002725,2]
[359432228,1746012638060,-204.58212604,0.0002725,2]
[359432229,1746012638070,-638.60782769,0.0002725,2]
[359432230,1746012638081,-500.0,0.0002725,2]
[359432231,1746012638090,-500.0,0.0002725,2]
[359432232,1746012638100,-500.0,0.0002725,2]
[359432233,1746012638111,-500.0,0.0002725,2]
[359432234,1746012638120,-500.0,0.0002725,2]
[359432235,1746012638130,-500.0,0.0002725,2]
[359432236,1746012638140,-500.0,0.0002725,2]
[359432237,1746012638151,-500.0,0.0002725,2]
[359432238,1746012638161,-500.0,0.0002725,2]
[359432239,1746012638170,-500.0,0.0002725,2]
[359432240,1746012638178,-500.0,0.0002725,2]
[359432241,1746012638186,-500.0,0.0002725,2]
[359432242,1746012638195,-500.0,0.0002725,2]
[359432243,1746012638204,-500.0,0.0002725,2]
[359432244,1746012638213,-500.0,0.0002725,2]
[359432245,1746012638222,-500.0,0.0002725,2]
[359432246,1746012638232,-500.0,0.0002725,2]
[359432247,1746012638242,-500.0,0.0002725,2]
[359432248,1746012638253,-560.94907482,0.0002725,2]
[359432249,1746012638262,-500.0,0.0002725,2]
[359432250,1746012638272,-500.0,0.0002725,2]
[359432251,1746012638281,-500.0,0.0002725,2]
[359432252,1746012638291,-500.0,0.0002725,2]
[359432253,1746012638300,-500.0,0.0002725,2]
[359432254,1746012638309,-500.0,0.0002725,2]
[359432255,1746012638319,-500.0,0.0002725,2]
[359432256,1746012638328,-500.0,0.0002725,2]
[359432257,1746012638337,-500.0,0.0002725,2]
[359432258,1746012638347,-500.0,0.0002725,2]
[359432259,1746012638356,-500.0,0.0002725,2]
[359432260,1746012638366,-500.0,0.0002725,2]
[359432261,1746012638375,-500.0,0.0002725,2]
[359432262,1746012638385,-500.0,0.0002725,2]
[359432263,1746012638395,-500.0,0.0002725,2]
[359432264,1746012638404,-500.0,0.0002725,2]
[359432265,1746012638413,-500.0,0.0002725,2]
[359432266,1746012638423,-500.0,0.0002725,2]
[359432267,1746012638433,-500.0,0.0002725,2]
[359432268,1746012638443,-500.0,0.0002725,2]
[359432269,1746012638453,-500.0,0.0002725,2]
[359432270,1746012638462,-500.0,0.0002725,2]
[359432271,1746012638472,-500.0,0.0002725,2]
[359432272,1746012638483,-500.0,0.0002725,2]
[359432273,1746012638493,-500.0,0.0002725,2]
[359432274,1746012638505,-500.0,0.0002725,2]
[359432275,1746012638515,-500.0,0.0002725,2]
[359432276,1746012638525,-500.0,0.0002725,2]
[359432277,1746012638535,-500.0,0.0002725,2]
[359432278,1746012638545,-500.0,0.0002725,2]
[359432279,1746012638553,-500.0,0.0002725,2]
[359432280,1746012638563,-500.0,0.0002725,2]
[359432281,1746012638573,-500.0,0.0002725,2]
[359432282,1746012638583,-500.0,0.0002725,2]
[359432283,1746012638593,-500.0,0.0002725,2]
[359432284,1746012638603,-500.0,0.0002725,2]
[359432285,1746012638613,-500.0,0.0002725,2]
[359432286,1746012638623,-500.0,0.0002725,2]
[359432287,1746012638633,-437.34545197,0.0002725,2]
[359432288,1746012638643,-500.0,0.0002725,2]
[359432289,1746012638652,-500.0,0.0002725,2]
[359432290,1746012638662,-500.0,0.0002725,2]
[359432291,1746012638671,-500.0,0.0002725,2]
[359432292,1746012638681,-500.0,0.0002725,2]
[359432293,1746012638691,-500.0,0.0002725,2]
[359432294,1746012638701,-500.0,0.0002725,2]
[359432295,1746012638710,-24321.01904308,0.00027252,2]
[359432296,1746012638723,-34235.07477722,0.00027252,2]
[359432297,1746012638733,-341.04352738,0.00027252,2]
[359432298,1746012638743,-160.0,0.00027256,3]
[359432299,1746012638753,-160.0,0.00027256,3]
[359432300,1746012638763,-160.0,0.00027256,3]
[359432301,1746012638773,-9010.23052087,0.00027256,3]
[359432302,1746012638785,-3582.38347354,0.00027256,3]
[359432303,1746012638795,-160.0,0.00027256,3]
[359432304,1746012638804,-421.37435881,0.00027256,3]
[359432305,1746012638814,-839.86542242,0.00027256,3]
[359432306,1746012638823,-160.0,0.00027256,3]
[359432307,1746012638833,-182.04053198,0.00027256,3]
[359432308,1746012638842,-160.0,0.00027256,3]
[359432309,1746012638852,-537.77771803,0.00027273,2]
[359432310,1746012638863,-224.99207342,0.00027276,2]
[359432311,1746012638872,-169.22572025,0.00027276,2]
[359432312,1746012638882,-275.94992759,0.00027276,2]
[359432313,1746012638891,-500.0,0.00027276,2]
[359432314,1746012638901,-58556.0938203,0.00027277,2]
[359432315,1746012638911,-341.04352738,0.00027277,2]
[359432316,1746012638920,-58556.0938203,0.00027277,2]
[359432317,1746012638930,-341.04352738,0.00027277,2]
[359432318,1746012638939,-175668.281461,0.00027287,2]
[359432319,1746012638949,-2046.26116428,0.00027287,2]
[359432320,1746012638959,-2728.34821904,0.00027287,2]
[359432321,1746012638968,-10286.79928274,0.00027296,3]
[359432322,1746012638978,-279691.43620822,0.00027297,2]
[359432323,1746012638988,-370000.0,0.00027297,2]
[359432324,1746012638998,-435.738,0.00027297,16]
[359432325,1746012639007,-151.0,0.00027297,7]
[359432326,1746012639016,-151.0,0.00027297,2]
[359432327,1746012639026,-151.0,0.00027297,7]
[359432328,1746012639038,-151.0,0.000273,13]
[359432329,1746012639047,-151.0,0.000273,14]
[359432330,1746012639057,-408.39518405,0.00027323,2]
[359432331,1746012639066,-341.04352738,0.00027363,2]
[359432332,1746012639076,-500.0,0.00027369,2]
[359432333,1746012639085,-500.67213413,0.00027373,2]
[359432334,1746012639095,-173.61579542,0.00027373,2]
[359432335,1746012639105,-500.0,0.00027373,2]
[359432336,1746012639114,-498.39906319,0.00027373,2]
[359432337,1746012639124,-500.84883477,0.00027373,2]
[359432338,1746012639134,-500.0,0.00027373,2]
[359432339,1746012639143,-500.0,0.00027373,2]
[359432340,1746012639153,-500.18747,0.00027373,2]
[359432341,1746012639163,-500.0,0.00027373,2]
[359432342,1746012639172,-500.0,0.00027373,2]
[359432343,1746012639181,-500.0,0.00027373,2]
[359432344,1746012639191,-500.0,0.00027373,2]
[359432345,1746012639200,-500.0,0.00027373,2]
[359432346,1746012639210,-500.0,0.00027373,2]
[359432347,1746012639221,-500.0,0.00027373,2]
[359432348,1746012639231,-192.06560509,0.00027373,2]
[359432349,1746012639241,-500.0,0.00027373,2]
[359432350,1746012639251,-300.0,0.00027373,2]
[359432352,1746012639487,-500.0,0.00027373,2]
[359432353,1746012639499,-500.0,0.00027373,2]
[359432354,1746012639510,-500.0,0.00027373,2]
[359432355,1746012639520,-500.0,0.00027373,2]
[359432356,1746012639530,-682.08705476,0.00027387,2]
[359432357,1746012639540,-151.0,0.00027395,2]
[359432358,1746012639549,-215.0738,0.00027395,2]
[359432359,1746012639559,-400.0,0.00027397,2]
[359432360,1746012639569,-500.77010991,0.00027397,2]
[359432361,1746012639579,-501.81232517,0.00027397,2]
[359432362,1746012639589,-500.0,0.00027397,2]
[359432363,1746012639599,-165.44075881,0.00027397,2]
[359432364,1746012639609,-400.0,0.00027397,2]
[359432365,1746012639619,-400.0,0.00027397,2]
[359432366,1746012639628,-400.0,0.00027397,2]
[359432367,1746012639638,-400.0,0.00027397,2]
[359432368,1746012639647,-400.0,0.00027397,2]
[359432369,1746012639657,-400.0,0.00027397,2]
[359432370,1746012639667,-500.0,0.00027397,2]
[359432371,1746012639677,-400.0,0.00027397,2]
[359432372,1746012639687,-400.0,0.00027397,2]
[359432373,1746012639697,-400.0,0.00027397,2]
[359432374,1746012639708,-400.0,0.00027397,2]
[359432375,1746012639718,-400.0,0.00027397,2]
[359432376,1746012639729,-400.0,0.00027397,2]
[359432377,1746012639739,-379.77267593,0.00027397,2]
[359432379,1746012639750,-500.0,0.00027397,2]
[359432380,1746012639761,-400.0,0.00027397,2]
[359432381,1746012639772,-507.00807046,0.00027397,2]
[359432382,1746012639782,-500.66275046,0.00027397,2]
[359432383,1746012639792,-500.0,0.00027397,2]
[359432385,1746012639802,-400.0,0.00027397,2]
[359432386,1746012639812,-400.0,0.00027397,2]
[359432387,1746012639823,-400.0,0.00027397,2]
[359432388,1746012639833,-400.0,0.00027397,2]
[359432389,1746012639843,-400.0,0.00027397,2]
[359432390,1746012639853,-400.0,0.00027397,2]
[359432391,1746012639863,-400.0,0.00027397,2]
[359432392,1746012639873,-507.66796083,0.00027397,2]
[359432393,1746012639883,-400.0,0.00027397,2]
[359432394,1746012639893,-400.0,0.00027397,2]
[359432395,1746012639902,-300.0,0.00027397,2]
[359432397,1746012639912,-400.0,0.00027397,2]
[359432399,1746012639922,-400.0,0.00027397,2]
[359432401,1746012639931,-400.0,0.00027397,2]